bitfinex-derivatives/quotes_ETHF0:USTF0_20250528
["timestamp","ask_amount","ask_price","bid_price","bid_amount"]
[1748440076494,0.75038,2664.1,2663.8,2.03414]
[1748440076803,3.21342788,2664.2,2664.1,0.75036]
[1748440077189,3.21342788,2664.2,2663.8,1.2837]
[1748440077692,0.75042,2663.9,2663.8,1.2837]
[1748440078090,3.21342788,2664.2,2663.8,1.2837]
[1748440078290,4.652,2664.0,2663.9,0.75042]
[1748440078596,4.65762788,2664.2,2664.1,0.75036]
[1748440078888,4.65762788,2664.2,2663.7,1.8762]
[1748440079194,0.00562788,2664.2,2664.1,0.75036]
[1748440079589,7.88e-06,2664.2,2664.1,5.75036]
[1748440080491,7.88e-06,2664.2,2664.1,10.40336]
[1748440080690,3.2078,2665.6,2665.5,0.74997]
[1748440080884,3.2078,2665.6,2663.9,4.51512]
[1748440080885,7.8608,2666.3,2665.3,3.2078]
[1748440081090,0.74979,2666.2,2666.0,0.74981]
[1748440081294,0.74986,2665.9,2665.8,0.74987]
[1748440081494,4.653,2665.9,2665.6,0.74993]
[1748440081697,1.87472,2665.8,2665.5,0.00562788]
[1748440081900,3.95774,2665.6,2665.5,0.00562788]
[1748440082296,8.61074,2665.6,2665.5,0.00562788]
[1748440082498,3.95774,2665.6,2665.5,0.00562788]
[1748440082692,1.2635,2665.8,2665.5,0.00562788]
[1748440082897,4.604,2665.7,2665.5,0.00562788]
[1748440083095,4.604,2665.8,2665.5,0.00562788]
[1748440083300,0.00562788,2666.0,2665.9,0.74986]
[1748440083906,0.00562788,2666.0,2665.9,3.95766]
[1748440084104,0.00562788,2666.0,2665.9,5.74986]
[1748440084297,0.00562788,2666.0,2665.9,0.74986]
[1748440084503,0.00562788,2666.0,2665.9,3.95766]
[1748440086799,3.21342788,2666.0,2665.5,0.00562788]
[1748440087000,3.21342788,2666.0,2665.6,0.74994]
[1748440087001,3.2078,2665.7,2665.6,0.74994]
[1748440087305,3.21342788,2666.0,2665.7,0.74989]
[1748440087504,3.21342788,2666.0,2665.6,5.35292]
[1748440087700,3.21342788,2666.0,2665.7,0.7499]
[1748440087897,0.74991,2665.7,2665.6,4.603]
[1748440088093,0.74994,2665.6,2665.5,0.00562788]
[1748440088701,2.04014,2665.6,2665.5,0.00562788]
[1748440089008,1.875,2665.4,2664.5,7.8108]
[1748440089204,3.2078,2665.0,2664.9,0.75013]
[1748440089411,3.2078,2665.4,2665.3,0.75]
[1748440089703,3.2078,2665.4,2665.3,5.353]
[1748440089903,3.2078,2665.4,2665.3,10.353]
[1748440090106,3.2078,2665.8,2665.7,0.74991]
[1748440090298,0.00562788,2666.0,2665.9,0.74985]
[1748440090906,0.00562788,2666.0,2665.9,3.95765]
[1748440091104,0.00562788,2666.0,2665.9,1.9585]
[1748440091300,0.75545788,2666.0,2665.9,1.3363]
[1748440091803,1.31462788,2666.0,2665.4,0.6222]
[1748440092006,3.95774,2665.6,2665.5,1.283]
[1748440092701,0.75008,2665.1,2665.0,0.6165]
[1748440092910,3.2078,2665.3,2664.2,3.2078]
[1748440093104,3.2078,2664.8,2664.3,0.75029]
[1748440093412,3.2078,2664.5,2664.1,0.6414]
[1748440093706,5.08368,2664.2,2663.6,0.7505]
[1748440093906,0.75036,2664.1,2664.0,1.283]
[1748440094209,3.1847,2664.4,2664.1,0.75034]
[1748440094210,0.75031,2664.3,2664.1,0.75034]
[1748440094407,0.75031,2664.3,2664.2,1.3417]
[1748440095016,3.2078,2664.4,2663.3,3.8492]
[1748440095204,3.2078,2663.6,2663.3,0.6414]
[1748440095405,0.75055,2663.5,2663.4,1.3417]
[1748440096107,3.2078,2663.6,2662.7,1.3058]
[1748440096307,0.7507,2662.9,2662.8,1.3417]
[1748440096510,3.95848,2663.0,2662.8,1.3417]
[1748440096809,3.2078,2663.0,2662.8,1.3417]
[1748440097004,3.95849,2663.0,2662.8,1.3417]
[1748440097203,0.00562788,2663.1,2662.9,0.7507]
[1748440097401,0.00562788,2663.1,2662.8,1.3417]
[1748440097402,3.9567021,2663.1,2663.0,1.2551]
[1748440097611,3.2060621,2663.1,2662.5,4.603]
[1748440097804,0.75069,2663.0,2662.7,0.75074]
[1748440098114,0.7507,2662.9,2662.8,1.2551]
[1748440098307,3.21168998,2663.1,2662.6,1.2551]
[1748440098509,0.00562788,2663.1,2663.0,0.75067]
[1748440099009,3.2078,2663.7,2663.6,0.7505]
[1748440099216,3.2078,2663.7,2663.2,3.2078]
[1748440099513,3.2078,2663.4,2663.0,1.2551]
[1748440099712,3.2078,2663.1,2663.0,2.00577]
[1748440099919,3.2078,2663.1,2662.6,0.00562788]
[1748440100214,3.2078,2662.8,2662.6,1.26072788]
[1748440100512,3.2078,2662.8,2662.6,2.01149788]
[1748440100708,3.2078,2663.1,2662.6,1.26072788]
[1748440100915,3.95846,2663.1,2662.9,0.75069]
[1748440101110,3.95846,2663.1,2663.0,1.315]
[1748440101311,3.2078,2663.1,2662.7,1.315]
[1748440101514,0.7507,2662.9,2662.8,0.75073]
[1748440101718,3.2078,2663.1,2662.7,1.315]
[1748440101915,3.2078,2663.1,2663.0,0.75067]
[1748440102220,0.00562788,2663.3,2663.2,0.75061]
[1748440102423,0.00562788,2663.3,2662.8,1.315]
[1748440102717,3.2078,2663.1,2662.8,1.315]
[1748440103108,3.95845,2663.1,2663.0,0.75067]
[1748440103319,3.2078,2663.1,2663.0,0.75067]
[1748440103620,0.00562788,2663.3,2663.2,0.75061]
[1748440104208,0.00562788,2663.3,2663.1,0.75063]
[1748440104414,0.75066,2663.1,2662.9,0.75068]
[1748440104712,1.2418,2663.2,2662.7,0.649]
[1748440104917,1.2418,2663.0,2662.9,0.7507]
[1748440105318,0.7507,2662.9,2662.8,0.75072]
[1748440105625,0.75075,2662.7,2662.6,0.00562788]
[1748440105924,3.2078,2660.8,2660.2,0.28419779]
[1748440106218,3.2078,2660.8,2659.8,1.29775871]
[1748440106219,3.2078,2660.2,2658.4,4.18469481]
[1748440106418,3.2078,2659.2,2658.5,0.07523039]
[1748440106718,3.2078,2658.8,2658.5,0.07523039]
[1748440106911,0.00563857,2658.9,2658.5,0.07523039]
[1748440107111,3.2078,2658.6,2658.5,0.07523039]
[1748440107323,0.00563857,2658.9,2658.5,5.07523039]
[1748440107520,0.00563857,2658.9,2658.5,5.26923039]
[1748440107818,3.2078,2658.7,2658.6,0.75191]
[1748440108223,0.00563857,2658.9,2658.7,0.75187]
[1748440108415,0.00563857,2658.9,2658.5,0.07523039]
[1748440108416,3.21343857,2658.9,2658.5,0.07523039]
[1748440108722,3.21343857,2658.9,2658.4,0.00563857]
[1748440108924,3.21343857,2658.9,2658.4,0.75758857]
[1748440109221,3.2078,2658.6,2658.4,0.00563857]
[1748440109625,0.75194,2658.5,2658.4,0.00563857]
[1748440110012,3.2078,2658.6,2658.4,0.00563857]
[1748440110820,0.75201,2658.3,2657.2,4.4981]
[1748440111015,3.2078,2657.7,2657.2,0.6168]
[1748440111216,0.00563857,2658.9,2656.2,0.6293]
[1748440111217,3.2078,2657.4,2656.2,0.6293]
[1748440111416,3.2078,2657.0,2656.2,0.6293]
[1748440111615,3.2078,2657.1,2656.2,0.6293]
[1748440111815,0.00563857,2656.9,2656.8,0.75242]
[1748440112215,0.00563857,2656.9,2656.8,5.75242]
[1748440112418,0.00563857,2656.9,2656.8,0.75242]
[1748440112621,0.00563857,2656.9,2656.7,5.421]
[1748440112824,0.00563857,2656.9,2656.8,0.75242]
[1748440113120,0.11853857,2656.9,2656.8,0.75242]
[1748440114325,0.11853857,2656.9,2655.0,3.76465]
[1748440114326,51.63533857,2656.9,2654.8,3.2078]
[1748440114521,3.2078,2655.2,2654.7,0.753]
[1748440114822,3.2078,2654.9,2654.0,3.76608]
[1748440115020,0.00565099,2655.2,2655.1,0.7529]
[1748440115222,3.21345099,2655.2,2654.2,1.88289]
[1748440115521,3.2078,2654.9,2654.0,2.55051]
[1748440115721,0.1129,2656.9,2654.0,5.6675]
[1748440115929,3.2078,2657.1,2656.2,1.88148]
[1748440116123,3.2078,2657.4,2656.7,1.88112]
[1748440116427,3.2078,2657.4,2657.3,0.75228]
[1748440117026,3.2078,2657.4,2657.1,0.00565099]
[1748440117428,3.2078,2657.4,2657.2,0.75228]
[1748440117624,3.2078,2657.4,2657.1,0.00565099]
[1748440118020,3.2078,2657.4,2657.3,0.75228]
[1748440118226,0.00565099,2657.6,2657.2,3.2078]
[1748440118422,0.1128,2657.5,2657.1,3.21345099]
[1748440118727,0.00565099,2657.6,2657.5,0.75222]
[1748440119116,3.21345099,2657.6,2657.1,0.00565099]
[1748440119421,3.2078,2657.3,2657.1,0.00565099]
[1748440119626,6.77931,2657.2,2657.1,0.00565099]
[1748440120021,5.0,2657.2,2657.1,0.00565099]
[1748440120421,6.027,2657.3,2657.1,0.00565099]
[1748440120623,0.1128,2657.4,2657.3,0.75228]
[1748440121323,3.2078,2658.2,2657.4,1.88063]
[1748440121631,3.2078,2658.7,2658.6,0.75191]
[1748440121929,3.2078,2658.7,2658.1,0.75205]
[1748440121930,6.027,2658.9,2658.8,0.75185]
[1748440122122,3.2078,2659.0,2658.9,0.75182]
[1748440122426,0.00565099,2659.2,2658.7,0.00565099]
[1748440122628,0.00565099,2659.2,2659.1,0.75177]
[1748440122826,0.00565099,2659.2,2658.7,0.00565099]
[1748440123020,3.95963,2658.9,2658.7,0.00565099]
[1748440123222,3.2078,2658.9,2658.7,0.00565099]
[1748440123628,3.95964,2658.9,2658.7,0.00565099]
[1748440123827,8.2078,2658.9,2658.7,0.00565099]
[1748440124029,3.95964,2658.9,2658.7,0.00565099]
[1748440124322,3.2078,2658.9,2658.7,0.00565099]
[1748440124727,3.2078,2658.9,2658.7,0.75752099]
[1748440125034,3.95963,2658.9,2658.7,0.00565099]
[1748440125232,3.2078,2658.9,2658.7,0.75752099]
[1748440125422,0.1128,2659.0,2658.9,0.75182]
[1748440125627,0.00565099,2659.2,2659.1,0.75177]
[1748440126726,3.2078,2659.5,2659.4,0.75168]
[1748440126922,3.2078,2659.5,2659.0,3.13394]
[1748440127129,3.2078,2659.5,2659.4,0.75168]
[1748440127330,0.75169,2659.4,2659.0,1.2545]
[1748440127633,3.2078,2659.1,2659.0,1.2545]
[1748440128137,3.2078,2659.1,2659.0,2.0063]
[1748440128331,0.11844026,2659.3,2659.2,0.75174]
[1748440128532,0.11844026,2659.3,2659.0,2.00628]
[1748440128836,0.11844026,2659.3,2659.2,0.75174]
[1748440129330,0.00564026,2659.3,2659.2,0.75174]
[1748440129729,3.2078,2659.8,2659.7,0.7516]
[1748440130036,3.2078,2659.8,2659.0,4.4623]
[1748440130230,3.2078,2659.4,2659.0,1.2545]
[1748440130432,3.2078,2659.1,2659.0,1.2545]
[1748440130733,3.2078,2659.1,2658.7,3.21345099]
[1748440130734,3.2078,2659.1,2658.7,0.00565099]
[1748440130932,0.75182,2658.9,2658.8,1.2394]
[1748440131131,0.75181,2659.0,2658.8,1.2394]
[1748440131332,3.3206,2659.1,2659.0,0.7518]
[1748440131533,0.1128,2659.1,2659.0,0.7518]
[1748440132131,0.1128,2659.1,2659.0,5.7518]
[1748440132331,3.2078,2659.9,2659.2,0.75174]
[1748440132538,3.2078,2659.9,2659.3,3.11864]
[1748440132838,0.75161,2659.7,2659.3,1.2394]
[1748440133034,3.2078,2659.9,2659.5,0.75164]
[1748440133244,3.2078,2659.6,2659.4,0.75167]
[1748440133434,3.2078,2659.6,2659.5,0.75165]
[1748440133740,3.2078,2659.9,2659.8,0.75157]
[1748440133941,0.75718026,2660.0,2659.5,1.87911]
[1748440133942,0.00564026,2660.0,2659.9,0.75154]
[1748440134234,0.75717026,2660.0,2659.9,0.75154]
[1748440134440,0.75717026,2660.0,2659.6,4.538]
[1748440134441,0.7516,2659.8,2659.6,1.3302]
[1748440134737,0.037,2659.9,2659.8,0.75156]
[1748440135438,0.037,2659.9,2659.8,0.75157]
[1748440136435,0.00564026,2660.0,2659.9,0.75154]
[1748440137233,0.75171,2659.3,2659.2,0.75172]
[1748440137435,3.2078,2659.4,2659.3,0.75171]
[1748440137629,3.2078,2659.6,2659.3,0.75171]
[1748440137827,4.45124026,2660.0,2659.4,1.2875]
[1748440138035,4.45124026,2660.0,2659.5,1.87915]
[1748440138036,0.037,2659.9,2659.5,1.87915]
[1748440138236,0.037,2659.9,2659.8,0.75157]
[1748440138432,0.7516,2659.7,2659.6,1.2875]
[1748440138635,3.2078,2659.7,2659.6,1.2875]
[1748440138834,0.75158,2659.8,2659.7,0.75158]
[1748440139034,2.02637,2659.9,2659.8,0.75157]
[1748440139230,1.2748,2659.9,2659.6,1.2875]
[1748440139442,0.75159,2659.8,2659.7,0.75158]
[1748440139830,0.037,2659.9,2659.8,0.75157]
[1748440140143,0.78854,2659.9,2659.8,1.97407]
[1748440140433,0.75174,2659.3,2659.2,0.75172]
[1748440140635,0.75174,2659.2,2659.1,1.2225]
[1748440140941,11.11198,2659.5,2658.8,1.87963]
[1748440140942,6.025,2659.5,2658.8,1.87963]
[1748440141141,0.00564026,2660.0,2659.1,1.2225]
[1748440141339,1.26584026,2660.0,2659.9,0.75154]
[1748440141537,0.00564026,2660.0,2659.9,0.75154]
[1748440143339,0.00564026,2660.0,2659.7,1.2225]
[1748440143536,0.75156,2659.9,2659.8,0.75155]
[1748440143737,0.75717026,2660.0,2659.9,0.75154]
[1748440144036,0.00564026,2660.0,2659.9,0.75154]
[1748440145141,0.00564026,2660.0,2659.9,5.75154]
[1748440145439,14.23844026,2660.0,2658.2,3.2078]
[1748440145635,3.2078,2658.8,2658.7,0.75753099]
[1748440146442,3.2078,2659.7,2658.7,29.16345099]
[1748440146632,0.00564026,2660.0,2659.4,1.8792]
[1748440146834,0.00564026,2660.0,2659.6,0.75161]
[1748440147036,3.9594,2659.8,2659.7,1e-08]
[1748440147343,0.75173,2659.3,2658.9,0.6713]
[1748440147540,3.2078,2659.4,2658.9,0.6713]
[1748440147743,0.75174,2659.3,2659.2,0.75174]
[1748440147943,0.75172,2659.3,2658.9,0.6713]
[1748440148144,3.21344026,2660.0,2659.7,0.75158]
[1748440148441,0.00564026,2660.0,2659.9,0.75154]
[1748440148650,0.037,2660.2,2660.1,0.75149]
[1748440148844,3.8836,2661.3,2660.4,1.87845]
[1748440149041,1.2394,2661.2,2660.4,5.08625]
[1748440149237,1.2394,2661.2,2660.4,3.2078]
[1748440149542,3.2078,2660.7,2660.0,3.2078]
[1748440149749,3.95913,2660.7,2660.6,0.75134]
[1748440150051,3.95914,2660.7,2660.6,0.75134]
[1748440150339,3.95914,2660.7,2660.6,1.97444]
[1748440150542,3.95914,2660.7,2660.6,1.2231]
[1748440150742,3.95912,2660.7,2660.6,1.2231]
[1748440150937,0.00369743,2661.1,2660.6,4.4309]
[1748440151141,0.00369743,2661.1,2660.7,1.2231]
[1748440151348,0.00369743,2661.1,2661.0,0.75123]
[1748440151539,0.00369743,2661.1,2660.9,0.75124]
[1748440151841,0.75134,2660.6,2660.5,0.00564026]
[1748440152043,3.2078,2660.6,2660.5,0.00564026]
[1748440152245,0.75133,2660.7,2660.6,0.75134]
[1748440152440,3.21149743,2661.1,2660.6,1.3389]
[1748440152748,1.16145989,2661.0,2660.9,0.75125]
[1748440153242,0.1127,2661.0,2660.9,0.75125]
[1748440153653,0.1127,2661.0,2660.9,0.75126]
[1748440154352,0.86396,2661.0,2660.6,1.3389]
[1748440154646,0.1127,2661.0,2660.9,0.75126]
[1748440155449,0.00369743,2661.1,2661.0,0.75123]
[1748440155754,0.00369743,2661.1,2660.8,1.3322]
[1748440155755,0.75126,2660.9,2660.8,1.3322]
[1748440155945,1.3161,2661.0,2660.5,0.00564026]
[1748440156139,3.21149743,2661.1,2661.0,0.75123]
[1748440156345,3.21149743,2661.1,2660.6,1.3322]
[1748440156646,3.2078,2660.9,2660.7,1.3322]
[1748440156849,1.79589743,2661.1,2660.7,1.3322]
[1748440157050,0.00369743,2661.1,2661.0,0.75123]
[1748440158248,0.00369743,2661.1,2661.0,7.08343]
[1748440158449,0.1126,2661.3,2661.2,0.75117]
[1748440158651,3.2078,2662.3,2662.2,0.75089]
[1748440158846,1.7922,2662.3,2662.2,0.75089]
[1748440159243,1.2821,2662.4,2662.3,0.75086]
[1748440159450,3.2078,2662.7,2662.1,0.00564026]
[1748440159650,0.7508,2662.6,2662.5,0.75081]
[1748440159851,2.0329,2662.6,2662.5,0.75081]
[1748440160044,3.0743,2662.6,2662.5,0.75081]
[1748440160245,1.2821,2662.6,2662.5,0.75081]
[1748440160560,0.75082,2662.5,2662.1,3.21344026]
[1748440160747,1.2821,2662.6,2662.4,0.75082]
[1748440161042,2.03288,2662.6,2662.5,1.2976]
[1748440161352,0.75089,2662.2,2662.1,0.00564026]
[1748440161552,3.95869,2662.2,2662.1,0.00564026]
[1748440161749,3.95869,2662.2,2661.3,3.2078]
[1748440161750,0.75112,2661.4,2661.3,3.2078]
[1748440161948,0.75108,2661.6,2661.3,3.2078]
[1748440162143,0.75108,2661.6,2661.5,0.75107]
[1748440162357,0.75109,2661.5,2661.4,1.2678]
[1748440162654,0.75106,2661.7,2661.5,0.75107]
[1748440162857,1.87719,2662.3,2661.5,0.75107]
[1748440162858,5.08487,2662.5,2661.6,3.2078]
[1748440163052,0.75103,2661.7,2661.6,1.2678]
[1748440163244,3.95883,2661.7,2661.6,1.2678]
[1748440163450,0.75102,2661.8,2661.6,1.2678]
[1748440163650,1.2639,2661.9,2661.8,0.75101]
[1748440163856,3.2078,2662.3,2662.1,0.75092]
[1748440164048,3.2078,2662.3,2662.2,0.75089]
[1748440164546,0.75089,2662.2,2662.1,0.75091]
[1748440164752,0.75089,2662.2,2662.1,0.75092]
[1748440165446,1.26954,2662.4,2661.9,1.2544]
[1748440165644,3.95875,2662.0,2661.9,2.00538]
[1748440165850,0.75095,2662.0,2661.9,1.2544]
[1748440166054,0.75106,2661.6,2661.5,1.42148]
[1748440166250,0.75106,2661.7,2661.6,0.75105]
[1748440166455,0.75112,2661.4,2661.3,0.00564026]
[1748440166658,3.95892,2661.4,2661.3,1.26004026]
[1748440167147,3.2078,2661.4,2661.3,2.01119026]
[1748440167549,3.2078,2661.4,2661.3,0.00564026]
[1748440167550,3.95892,2661.4,2661.3,0.00564026]
[1748440167743,5.75112,2661.4,2661.3,0.00564026]
[1748440168751,3.2078,2661.4,2661.3,0.75679026]
[1748440169057,3.95892,2661.4,2661.3,0.75679026]
[1748440169354,3.2078,2661.4,2661.3,0.75679026]
[1748440169556,3.2078,2661.8,2661.3,5.00564026]
[1748440169754,3.2078,2662.1,2662.0,0.75095]
[1748440170249,3.21344,2662.4,2662.3,0.75086]
[1748440171656,0.00564,2662.4,2662.3,0.75086]
[1748440171858,3.2078,2662.8,2662.7,0.75075]
[1748440172560,0.75066,2663.1,2663.0,0.75067]
[1748440172759,0.75066,2663.1,2662.6,1.87692]
[1748440172760,4.4632,2663.2,2663.1,0.75064]
[1748440173162,3.2078,2663.2,2663.1,0.75064]
[1748440173356,3.2078,2663.2,2663.0,0.75066]
[1748440173553,4.4287,2663.2,2663.1,0.75064]
[1748440173758,0.6763,2663.9,2662.9,1.2979]
[1748440173759,3.2078,2663.5,2662.9,1.2979]
[1748440173952,3.2078,2663.5,2662.8,0.00564026]
[1748440173953,3.2078,2663.2,2662.8,0.00564026]
[1748440174164,3.9585,2662.9,2662.8,0.00564026]
[1748440175164,3.9585,2662.9,2662.8,0.75636026]
[1748440175361,0.7507,2662.9,2662.8,0.00564026]
[1748440175660,0.7507,2662.9,2662.8,0.75636026]
[1748440175861,0.75068,2663.0,2662.9,0.75069]
[1748440176062,0.7507,2662.9,2662.8,0.75635026]
[1748440176258,0.75069,2663.0,2662.9,0.75069]
[1748440176561,0.75066,2663.1,2663.0,0.75067]
[1748440176755,1.2681,2663.3,2662.9,1.2558]
[1748440176951,0.75064,2663.1,2663.0,0.75067]
[1748440177258,0.7507,2662.9,2662.8,0.00564026]
[1748440177460,3.9585,2662.9,2662.8,0.00564026]
[1748440178557,1.2681,2663.0,2662.8,0.00564026]
[1748440178757,0.7507,2662.9,2662.8,0.75636026]
[1748440178954,0.7507,2662.9,2662.8,0.00564026]
[1748440179259,2.0188,2662.9,2662.8,0.00564026]
[1748440179459,6.2681,2662.9,2661.5,6.58907]
[1748440179756,3.2078,2661.7,2661.5,1.269]
[1748440179960,0.75106,2661.6,2661.5,1.269]
[1748440180262,1.2469,2661.6,2661.5,2.02009]
[1748440180461,0.75666026,2661.8,2661.7,0.75103]
[1748440180759,0.00564026,2661.8,2661.7,0.75103]
[1748440181257,0.00564026,2661.8,2661.7,3.95883]
[1748440181659,3.2078,2662.3,2662.2,0.7509]
[1748440181861,3.8228,2662.8,2662.1,1.87729]
[1748440182067,3.8228,2662.8,2661.4,5.838]
[1748440182068,1.2469,2662.7,2662.0,4.4768]
[1748440182258,0.75089,2662.3,2662.2,0.7509]
[1748440182764,0.75091,2662.2,2662.1,0.75091]
[1748440182963,1.2866,2662.2,2662.1,0.75091]
[1748440183358,3.2078,2662.5,2662.4,0.75084]
[1748440183666,1.2866,2662.7,2662.6,0.75078]
[1748440183871,4.4944,2662.7,2662.6,0.75078]
[1748440184065,6.2866,2662.7,2662.6,0.75078]
[1748440184262,4.82825528,2664.4,2662.7,1.87684]
[1748440184475,1.87591,2664.1,2663.5,3.2078]
[1748440184762,0.75053,2663.5,2663.4,1.234]
[1748440184961,0.75053,2663.5,2663.3,0.00564026]
[1748440184962,0.75054,2663.5,2663.3,0.00564026]
[1748440185157,9.0458,2664.0,2663.3,0.00564026]
[1748440185362,0.75056,2663.4,2663.3,0.00564026]
[1748440185763,1.87612,2663.8,2663.3,0.00564026]
[1748440186065,0.75054,2663.5,2663.4,0.75055]
[1748440186264,3.2078,2664.0,2663.3,0.00564026]
[1748440186565,0.75056,2663.4,2663.3,0.00564026]
[1748440186866,3.95836,2663.4,2663.3,0.00564026]
[1748440187062,5.75056,2663.4,2663.3,0.00564026]
[1748440187361,3.2078,2663.7,2663.3,0.00564026]
[1748440187557,0.75055,2663.5,2663.4,0.75055]
[1748440187756,2.01101,2663.6,2663.5,0.75053]
[1748440187961,0.75056,2663.4,2663.3,1.24844026]
[1748440188159,0.75056,2663.4,2663.3,0.00564026]
[1748440188360,0.75078,2662.6,2662.5,3.9586]
[1748440188560,0.75078,2662.6,2662.5,3.2078]
[1748440189357,0.75084,2662.4,2662.3,0.00564026]
[1748440189763,2.09632,2662.5,2662.3,0.00564026]
[1748440189960,1.3455,2662.5,2662.4,0.75084]
[1748440190464,0.00564026,2662.8,2662.7,0.75075]
[1748440190864,0.00564026,2662.8,2662.7,3.95855]
[1748440192762,0.75081,2662.5,2662.4,1.2705]
[1748440192961,3.21344026,2662.8,2662.3,0.00564026]
[1748440192962,0.75084,2662.4,2662.3,0.00564026]
[1748440193162,2.02714,2662.4,2662.3,0.00564026]
[1748440193358,2.02714,2662.4,2662.3,0.75651026]
[1748440193568,0.00564026,2662.8,2662.6,0.75076]
[1748440193871,0.75079,2662.6,2662.5,0.75079]
[1748440194072,1.2763,2662.7,2662.3,1.28374026]
[1748440194274,1.2763,2662.7,2662.4,0.75081]
[1748440194571,1.2763,2662.7,2662.5,1.2781]
[1748440194965,0.75078,2662.6,2662.5,2.02889]
[1748440195368,1.2763,2662.7,2662.5,1.2781]
[1748440195573,0.00564026,2662.8,2662.7,0.75075]
[1748440195769,0.00564026,2662.8,2662.7,3.95855]
[1748440201766,0.75084,2662.4,2662.3,4.52454026]
[1748440202371,0.75084,2662.4,2662.3,3.21344026]
[1748440203169,5.75084,2662.4,2662.3,2.6e-07]
[1748440203472,1.92141015,2662.4,2662.3,2.6e-07]
[1748440203673,0.75084,2662.4,2662.3,2.6e-07]
[1748440203974,4.1597,2663.1,2662.3,1.27340026]
[1748440204175,0.00564026,2663.0,2662.9,0.75067]
[1748440204372,0.00564026,2663.0,2662.9,3.95847]
[1748440205177,0.98193966,2663.6,2663.5,0.75053]
[1748440205373,5.80241052,2664.5,2663.5,3.2078]
[1748440205674,1.8759,2664.1,2663.2,0.75059]
[1748440205873,3.2078,2664.2,2663.4,3.2078]
[1748440206177,0.75045,2663.8,2663.6,0.75049]
[1748440206571,0.75043,2663.9,2663.6,0.75048]
[1748440206776,1.3291,2664.1,2663.5,0.00564026]
[1748440206976,0.7505,2663.6,2663.5,0.00564026]
[1748440207981,4.8565,2664.1,2663.5,0.00564026]
[1748440207982,4.5369,2664.1,2663.5,0.00564026]
[1748440208272,0.7505,2663.6,2663.5,0.00564026]
[1748440208479,0.7505,2663.6,2663.5,2.6e-07]
[1748440208674,5.94988792,2663.6,2663.5,2.6e-07]
[1748440208878,7.87969125,2663.6,2663.5,2.6e-07]
[1748440209274,0.75089,2662.2,2662.1,3.2078]
[1748440209482,8.8028,2662.6,2662.1,3.2078]
[1748440209785,0.75089,2662.2,2662.1,3.2078]
[1748440210778,0.00564026,2662.4,2662.3,0.75086]
[1748440210983,0.75649026,2662.4,2662.2,0.75088]
[1748440211276,0.75088,2662.3,2662.1,3.9587]
[1748440211581,0.75089,2662.2,2662.1,3.2078]
[1748440213487,0.00564026,2662.4,2662.3,0.75087]
[1748440215283,0.75089,2662.2,2662.1,3.2078]
[1748440215788,0.75089,2662.2,2661.9,0.00564026]
[1748440215789,0.75095,2662.0,2661.9,0.00564026]
[1748440215982,6.34595,2662.0,2661.9,0.00564026]
[1748440216784,0.00564026,2662.4,2661.9,0.00564026]
[1748440216785,0.00564026,2662.4,2662.0,0.75095]
[1748440216986,6.89624026,2662.4,2661.9,0.00564026]
[1748440217184,0.75095,2662.0,2661.9,0.00564026]
[1748440217383,0.00564026,2662.4,2661.9,0.00564026]
[1748440217586,0.75095,2662.0,2661.9,0.00564026]
[1748440218288,0.75095,2662.0,2661.9,0.75662026]
[1748440218486,0.75095,2662.0,2661.9,0.00564026]
[1748440219791,5.09054026,2662.4,2661.9,0.00564026]
[1748440219792,0.00564026,2662.4,2661.9,0.00564026]
[1748440220086,0.00564026,2662.4,2662.3,0.75087]
[1748440220292,0.75648026,2662.4,2662.3,0.75087]
[1748440220493,0.00564026,2662.4,2662.0,0.6771]
[1748440221088,0.75091,2662.2,2662.1,0.75091]
[1748440221288,0.75091,2662.2,2662.1,1.2796]
[1748440221490,0.75091,2662.2,2662.1,2.03052]
[1748440222485,0.75089,2662.2,2662.1,2.0305]
[1748440222687,0.75089,2662.2,2662.1,1.2796]
[1748440222890,0.75088,2662.3,2662.1,1.2796]
[1748440223092,0.00564026,2662.4,2662.3,0.75086]
[1748440223597,0.75066,2663.1,2663.0,0.75064]
[1748440223893,0.75066,2663.1,2663.0,3.95844]
[1748440224187,1.87654,2663.2,2662.4,1.30428482]
[1748440224486,0.7508,2662.6,2662.5,1.30428482]
[1748440224689,0.75078,2662.6,2662.5,2.05507482]
[1748440224985,0.75078,2662.6,2662.5,1.30428482]
[1748440225396,0.75081,2662.5,2662.4,1.2715]
[1748440226196,0.75084,2662.4,2662.3,3.2078]
[1748440226386,0.75084,2662.4,2662.3,4.4793]
[1748440226792,0.75092,2662.1,2662.0,3.2078]
[1748440226991,0.75092,2662.1,2662.0,0.75095]
[1748440227298,5.362,2663.0,2662.2,1.87724]
[1748440227497,5.362,2663.0,2662.5,3.2078]
[1748440227796,1.87677,2662.9,2662.6,0.75077]
[1748440227996,0.75078,2662.7,2662.6,1.2923]
[1748440228791,2.50638,2663.6,2663.2,0.7506]
[1748440228988,0.75057,2663.4,2663.3,0.75056]
[1748440229188,0.75061,2663.3,2663.2,3.2078]
[1748440229388,0.75061,2663.3,2663.2,3.95841]
[1748440229685,5.08376,2664.1,2663.2,8.2078]
[1748440229888,0.75052,2663.6,2663.5,0.75051]
[1748440230088,0.75049,2663.7,2663.5,0.97731571]
[1748440230288,0.75047,2663.7,2663.6,0.75048]
[1748440230495,0.7505,2663.6,2663.5,4.18511571]
[1748440230797,0.7505,2663.6,2663.5,3.95831]
[1748440231093,0.75049,2663.7,2663.6,0.75049]
[1748440231992,1.8761,2663.9,2663.5,4.18511571]
[1748440232193,0.7505,2663.6,2663.5,3.2078]
[1748440232398,0.75053,2663.5,2663.4,0.00564026]
[1748440232696,2.01933,2663.5,2663.4,2.6e-07]
[1748440232895,7.94993,2663.5,2663.4,2.6e-07]
[1748440233089,8.14905308,2663.5,2663.4,2.6e-07]